Cogmind - Beta 14 @@@ ROGUE MODE // 2024.09.18 @ 22:02:02 Player: Strick9 Result: Destroyed by L-41 Fighter with Axe Performance ------------- Evolutions (4) 2000 Regions Visited (11) 2200 Robots Destroyed (157) 785 Value Destroyed (6513) 6513 Prototype IDs (18) 360 Alien Tech Used (0) 0 Bonus (1183) 1183 TOTAL SCORE: 13041 Bonus ------- High Alert Combat Kills 258 Follower Combat Kills 271 Entered DSFs 500 Network Hubs Disabled 200 Friendly Fire -46 Cogmind --------- Core Integrity 0/850 Matter 260/300 Energy 565/565 System Corruption 17% Temperature Cool (24) Movement Walking (470) Ox5 Location -6/Hub_04(d) Parts ------- > --- POWER (2) -------- Neutrino Core Quantum Reactor > --- PROPULSION (4) --- Centrium Heavy Treads Carbon-fiber Leg > --- UTILITY (6) ------ Cryofiber Web Advanced Heat Sink Large Storage Unit Experimental Targeting Computer Improved Light Armor Plating Centrium Medium Armor Plating > --- WEAPON (3) ------- Thermic Laser Wave Gun Advanced KE Penetrator > --- INVENTORY (15) --- Reinforced Deuterium Engine Neutrino Core Carbon-fiber Leg Flexi-carbon Leg Flexi-carbon Leg Flexi-carbon Leg Target Analyzer Core Shielding KE Penetrator Advanced KE Penetrator Advanced KE Penetrator Advanced EMP Blaster Mini Grenade Launcher Peak State ------------ > --- POWER ------------ Quantum Reactor Quantum Reactor > --- PROPULSION ------- Centrium Heavy Treads Centrium Heavy Treads > --- UTILITY ---------- Cryofiber Web Advanced Heat Sink Large Storage Unit Advanced Signal Interpreter Centrium Medium Armor Plating Centrium Medium Armor Plating > --- WEAPON ----------- Wave Gun Advanced Variable Charge Gun Advanced KE Penetrator > --- INVENTORY -------- Light Angular Momentum Engine Light Angular Momentum Engine Quantum Reactor Advanced Heat Sink Advanced Heat Sink Advanced Heat Sink Weapon Cycler Coil Gun Coil Gun Hypervelocity Gauss Rifle Advanced KE Penetrator Advanced KE Penetrator Advanced KE Penetrator Advanced EMP Blaster Mini Grenade Launcher [Rating: 116] Favorites ----------- Power Quantum Reactor Engine Cooled Ion Engine Power Core Light Fission Core Reactor Quantum Reactor Propulsion Carbon-fiber Leg Treads Centrium Heavy Treads Leg Carbon-fiber Leg Utility Cryofiber Web Device Cryofiber Web Storage Large Storage Unit Processor Advanced Signal Interpreter Protection Centrium Medium Armor Plating Weapon Coil Gun Energy Gun Medium Laser Energy Cannon Cooled Particle Cannon Ballistic Gun Coil Gun Ballistic Cannon Improved Light Cannon Launcher Mini Grenade Launcher Build | -11 -10 -9 -9 -8 -7 -7 -6 -6 -6 -6 -6 ------- Run | Yrd Mat Mat Min Mat Fac DSF Fac Ext Cet Arc Hub Slots Evolved 8 | . . 2 . 2 2 . 2 . . . . Power 1 | . . . . . . . 1 . . . . Propulsion 2 | . . 1 . 1 . . . . . . . Utility 4 | . . 1 . 1 1 . 1 . . . . Weapon 1 | . . . . . 1 . . . . . . Parts Attached 227 | 6 11 25 9 38 2 8 19 65 14 2 28 Power 41 | 1 3 5 1 3 . 2 1 15 3 . 7 Engine 27 | 1 3 5 1 3 . 1 1 11 1 . . Core 8 | . . . . . . 1 . 4 . . 3 Reactor 6 | . . . . . . . . . 2 . 4 Propulsion 52 | 2 2 6 3 11 . 2 3 17 2 . 4 Treads 3 | . . . . . . . . . 2 . 1 Leg 49 | 2 2 6 3 11 . 2 3 17 . . 3 Wheel . | . . . . . . . . . . . . Hover . | . . . . . . . . . . . . Flight . | . . . . . . . . . . . . Utility 50 | 1 3 4 . 9 1 1 6 12 3 1 9 Device 26 | . 2 2 . 6 . 1 3 9 1 . 2 Storage 5 | 1 1 . . 1 . . 1 1 . . . Processor 3 | . . 1 . . . . . 1 . . 1 Hackware . | . . . . . . . . . . . . Protection 16 | . . 1 . 2 1 . 2 1 2 1 6 Artifact . | . . . . . . . . . . . . Weapon 84 | 2 3 10 5 15 1 3 9 21 6 1 8 Energy Gun 35 | 1 3 7 4 5 . . 1 4 4 1 5 Energy Cannon 6 | . . . . . . . 4 2 . . . Ballistic Gun 30 | 1 . . . 6 1 2 4 12 2 . 2 Ballistic Cannon 5 | . . 3 . 1 . . . 1 . . . Launcher 8 | . . . 1 3 . 1 . 2 . . 1 Special Weapon . | . . . . . . . . . . . . Impact Weapon . | . . . . . . . . . . . . Slashing Weapon . | . . . . . . . . . . . . Piercing Weapon . | . . . . . . . . . . . . Special Melee Weapon . | . . . . . . . . . . . . Unidentified Prototypes 16 | . . 1 . 5 . . 3 . 4 . 3 Parts Lost 64 | . 3 7 . 3 . 3 1 30 5 . 12 Power 15 | . 2 . . 1 . 1 1 6 1 . 3 Propulsion 19 | . . 4 . . . 1 . 10 3 . 1 Utility 16 | . . 2 . 2 . 1 . 6 1 . 4 Weapon 14 | . 1 1 . . . . . 8 . . 4 Highest Loss Streak 10 | . 3 6 . 1 . 3 1 10 4 . 4 To Critical Strikes 1 | . . . . . . 1 . . . . . Average Slot Usage (%) 95 | . 99 98 100 99 100 97 94 97 86 86 86 Engine 7 | . 13 11 11 9 7 4 2 8 1 . . Core 1 | . . . . . . 1 5 2 1 . 2 Reactor 2 | . . . . . . . . . 9 13 10 Treads 2 | . . . . . . . . . 9 13 12 Leg 22 | . 28 32 33 35 30 29 26 25 3 . 1 Device 20 | . 6 19 11 21 23 21 25 26 20 13 18 Storage 8 | . 21 11 11 9 7 7 6 6 6 6 6 Processor 1 | . . . . . . . . 3 6 3 . Protection 5 | . . 1 11 5 7 7 6 2 5 16 13 Energy Gun 10 | . 24 16 22 11 7 4 1 2 11 13 13 Energy Cannon 1 | . . . . . . . 3 3 . . . Ballistic Gun 7 | . 3 . . 5 15 17 13 12 7 6 5 Peak Build Rating 116 | 6 8 17 16 36 40 43 63 69 115 116 115 Average Rating 54 | 4 7 14 16 28 39 39 56 64 98 115 106 On Entrance 43 | . 6 8 16 16 33 40 43 56 68 115 115 Naked Turns . | . . . . . . . . . . . . Heaviest Build 99 | 11 15 24 23 29 32 32 62 64 92 99 99 Greatest Support 160 | 20 20 30 30 52 50 60 62 75 160 160 160 Greatest Overweight (x) 4 | 3 . 1 . . . . . 1 4 . 1 Average Overweight (x) . | . . . . . . . . . . . . Largest Inventory Capacity 15 | 8 8 8 8 10 10 10 15 15 15 15 15 Average Capacity 12 | 7 8 8 8 9 10 10 12 15 15 15 15 Most Carried 15 | 6 8 8 8 10 9 10 15 15 15 15 15 Average Carried 11 | 3 7 7 7 9 8 9 12 12 14 14 13 Final Capacity 15 | 8 8 8 8 10 10 10 15 15 15 15 15 Final Carried 15 | 6 8 8 8 10 8 10 15 15 15 15 13 Class Distribution -------------------- 39% | Scavenger-Tank 23% | Scavenger-Mutant 16% | Mutant 12% | Scavenger-Gunner 6% | Scavenger-Skirmisher Dominant Class ---------------- Mutant | -10/Materials Scavenger-Mutant | -9/Materials Mutant | -9/Mines Scavenger-Mutant | -8/Materials Scavenger-Tank | -7/Factory Scavenger-Tank | -7/DSF Scavenger-Tank | -6/Factory Scavenger-Gunner | -6/Extension Scavenger-Tank | -6/Cetus Scavenger-Tank | -6/Archives Scavenger-Tank | -6/Hub_04(d) Resources | -11 -10 -9 -9 -8 -7 -7 -6 -6 -6 -6 -6 ----------- Run | Yrd Mat Mat Min Mat Fac DSF Fac Ext Cet Arc Hub Matter Collected 4401 | 182 232 288 150 699 . 211 394 1289 416 51 489 Remotely . | . . . . . . . . . . . . Salvage Created 7864 | . 472 493 224 1034 . 330 795 2312 553 313 1338 Parts 330 | . 30 23 10 48 . 16 35 68 20 19 61 Haulers Intercepted 9 | . 1 1 . 2 . . 1 4 . . . Recyclers Shooed 10 | . . 1 2 . . . 1 6 . . . Parts Field Recycled . | . . . . . . . . . . . . Retrieved Matter . | . . . . . . . . . . . . Parts Self-Destructed . | . . . . . . . . . . . . Prevented . | . . . . . . . . . . . . Kills | -11 -10 -9 -9 -8 -7 -7 -6 -6 -6 -6 -6 ------- Run | Yrd Mat Mat Min Mat Fac DSF Fac Ext Cet Arc Hub Combat Hostiles Destroyed 114 | . 9 13 6 19 . 6 6 25 7 4 19 Guns 83 | . 9 7 4 15 . 4 3 14 6 4 17 Cannons 18 | . . 6 . 2 . . 2 8 . . . AOE 10 | . . . 2 1 . 2 1 3 . . 1 Classes Destroyed 16 | . 6 2 . 3 . . 1 3 . . 1 Worker 7 | . 3 . . . . . . . . . 4 Builder 7 | . 1 . . . . . 2 2 . . 2 Tunneler 1 | . . . . . . . . 1 . . . Hauler 9 | . 1 1 . 2 . . 1 4 . . . Recycler 13 | . 1 1 1 2 . . 2 6 . . . Operator 2 | . . 1 . . . . 1 . . . . Watcher 4 | . . . . . . . . 1 1 . 2 Swarmer 13 | . 3 5 3 . . . . 2 . . . Grunt 55 | . 6 4 2 13 . 3 2 14 3 . 8 Brawler 4 | . . . . 1 . . . 1 . . 2 Duelist 1 | . . . . . . . . . . . 1 Sentry 18 | . . 4 1 2 . . 1 3 . 4 3 Specialist 5 | . . . . 2 . 3 . . . . . Hunter 9 | . . . . 1 . . 2 3 . . 3 Programmer 1 | . . . . . . . 1 . . . . Behemoth 2 | . . . . . . . . 2 . . . Cetus Guard 4 | . . . . . . . . . 4 . . Lightning 2 | . . . . . . . . . . . 2 Best Kill Streak 8 | . 6 4 3 5 . 6 4 4 4 2 8 Combat Bots Only 6 | . 3 4 3 4 . 6 3 3 4 2 5 Max Kills in Single Turn 4 | . 1 1 2 1 . 2 2 2 1 1 4 Gunslinging 1 | . . . . . . . . 1 . . . Exploded 2 | . . . 2 1 . 2 1 1 . . 1 Melee . | . . . . . . . . . . . . Uniques/NPCs Destroyed . | . . . . . . . . . . . . Combat | -11 -10 -9 -9 -8 -7 -7 -6 -6 -6 -6 -6 -------- Run | Yrd Mat Mat Min Mat Fac DSF Fac Ext Cet Arc Hub Hostile Shots Fired 1021 | . 43 108 19 131 . 76 27 305 54 10 248 Missed 323 | . 10 29 5 50 . 30 9 112 16 3 59 Damage Taken 11935 | . 422 934 233 1221 . 842 318 3323 894 166 3582 Core 1427 | . 42 105 25 241 . 140 56 383 101 . 334 Absorbed by Shields 17 | . . . . . . . . 17 . . . Core Remaining (%) 77 | 100 83 . 67 56 . 80 . . . . . Volleys Fired 444 | . 44 48 17 79 . 14 26 114 26 6 70 Largest 3 | . 2 2 2 2 . 3 3 3 3 3 3 Hottest 247 | . 100 112 130 130 . 111 127 135 190 196 247 Shots Fired 1103 | . 84 96 32 156 . 42 72 333 71 18 199 Gun 903 | . 84 66 31 138 . 41 60 200 71 18 194 Cannon 176 | . . 30 . 17 . . 12 117 . . . Launcher 24 | . . . 1 1 . 1 . 16 . . 5 Special . | . . . . . . . . . . . . Kinetic 462 | . 13 30 . 84 . 29 56 163 30 6 51 Thermal 604 | . 58 66 31 71 . 12 16 154 41 12 143 Explosive 24 | . . . 1 1 . 1 . 16 . . 5 Electromagnetic 13 | . 13 . . . . . . . . . . Robot Hit Streak 22 | . 8 11 12 13 . 19 9 22 15 14 15 Robot Miss Streak 6 | . 5 5 1 3 . 1 4 6 6 1 3 Penetration Max 1 | . . . . . . . 1 1 1 . 1 Secondary Targets 13 | . . 2 . 3 . . . 2 2 . 4 Max Gunslinging Chain 1 | . . 1 . 1 . . . 1 1 . 1 Shots Hit Robots 731 | . 44 57 27 113 . 34 35 227 49 15 130 Core Hits 336 | . 24 21 10 44 . 13 29 97 22 10 66 Critical Kills 8 | . . . . . . . . 5 2 1 . Critical Parts Destroyed 16 | . . . . . . . . 5 3 . 8 Critical Strikes 50 | . 1 6 3 2 . 2 . 13 8 2 13 Burn 21 | . 1 4 3 2 . 2 . 1 3 . 5 Meltdown 1 | . . . . . . . . 1 . . . Destroy 26 | . . . . . . . . 11 5 2 8 Blast 2 | . . 2 . . . . . . . . . Melee Attacks . | . . . . . . . . . . . . Impact . | . . . . . . . . . . . . Slashing . | . . . . . . . . . . . . Piercing . | . . . . . . . . . . . . Sneak Attacks . | . . . . . . . . . . . . Combat Hostiles . | . . . . . . . . . . . . Follow-up Attacks . | . . . . . . . . . . . . Damage Inflicted 18336 | . 571 981 524 2251 . 715 1147 6502 1059 369 4217 Guns 12255 | . 561 455 386 1849 . 584 715 2931 1059 369 3346 Cannons 3600 | . . 523 . 292 . . 226 2559 . . . Explosions 2437 | . . . 138 105 . 131 206 986 . . 871 Melee . | . . . . . . . . . . . . Ramming 44 | . 10 3 . 5 . . . 26 . . . Kinetic 6915 | . 61 523 . 1166 . 404 695 2368 446 122 1130 Thermal 8864 | . 424 455 386 975 . 180 246 3122 613 247 2216 Explosive 1757 | . . . 138 105 . 131 . 986 . . 397 Electromagnetic 756 | . 76 . . . . . 206 . . . 474 Impact . | . . . . . . . . . . . . Slashing . | . . . . . . . . . . . . Piercing . | . . . . . . . . . . . . Highest Corruption 17 | . . . . . . . . 5 5 5 17 Average Corruption 5 | . . . . . . . . 5 5 5 8 Corruption Purged . | . . . . . . . . . . . . Corruption Blocked . | . . . . . . . . . . . . Effects 79 | . . . . . . . . 18 15 13 33 Message Errors 16 | . . . . . . . . 5 1 7 3 Matter Fused 20 | . . . . . . . . 3 8 3 6 Heat Flow Errors 7 | . . . . . . . . 2 . 2 3 Energy Discharges 10 | . . . . . . . . 1 3 1 5 Parts Rejected 1 | . . . . . . . . . . . 1 Data Loss (minor) 9 | . . . . . . . . 1 2 . 6 Data Loss (major) 1 | . . . . . . . . . 1 . . Misfires 5 | . . . . . . . . 5 . . . Weapon Failures 10 | . . . . . . . . 1 . . 9 Overload Shots . | . . . . . . . . . . . . Overflow Damage 112 | . . 8 . . . . 17 60 . . 27 Projectiles 54 | . . 8 . . . . 17 29 . . . Explosions 58 | . . . . . . . . 31 . . 27 Melee . | . . . . . . . . . . . . Knockbacks 10 | . . 3 . 4 . . . 3 . . . Impact 1 | . . . . . . . . 1 . . . Kinetic 9 | . . 3 . 4 . . . 2 . . . Secondary . | . . . . . . . . . . . . Self-Inflicted Damage 476 | . . . 35 . . 14 110 100 . . 217 Shots 14 | . . . 1 . . 1 3 4 . . 5 Rammed . | . . . . . . . . . . . . Targets Rammed 10 | . 1 3 . 1 . . . 5 . . . Kicked 10 | . 1 3 . 1 . . . 5 . . . Crushed . | . . . . . . . . . . . . Highest Temperature 404 | . 273 153 360 51 . . 189 404 202 73 371 Average Temperature 108 | . 88 34 157 26 . . 27 156 87 37 116 Received Heat Transfer 3309 | . 120 339 69 612 . 27 69 1218 135 18 702 Effects 6 | . 2 . 2 . . . . 2 . . . Energy Bleed 2 | . 1 . . . . . . 1 . . . Interference 4 | . 1 . 2 . . . . 1 . . . Siege Activations . | . . . . . . . . . . . . Robots Corrupted . | . . . . . . . . . . . . Combat Hostiles . | . . . . . . . . . . . . Parts Fried 6 | . . . . . . . 2 . . . 4 Impact Corruptions . | . . . . . . . . . . . . Robots Melted 5 | . . 1 . 1 . . . 1 1 . 1 Combat Hostiles 3 | . . . . 1 . . . . 1 . 1 Parts Melted 29 | . 2 2 3 1 . 1 . 3 3 2 12 Heat Transferred 17233 | . 1332 1517 1184 1998 . 481 333 4752 1221 370 4045 Parts Sabotaged 3 | . . . . . . . . . . . 3 Parts Stolen . | . . . . . . . . . . . . Parts Stripped . | . . . . . . . . . . . . Power Chain Reactions 1 | . . . . . . . 1 . . . . Alert | -11 -10 -9 -9 -8 -7 -7 -6 -6 -6 -6 -6 ------- Run | Yrd Mat Mat Min Mat Fac DSF Fac Ext Cet Arc Hub Peak Influence 812 | . 162 322 129 382 178 270 280 322 162 218 812 Initial 173 | . . 25 . 11 173 124 141 133 156 45 6 Average 172 | . 62 121 77 169 173 187 214 206 110 136 370 Maximum Alert Level 3 | . . 1 . 1 . 1 1 1 . 1 3 Low Security (%) 61 | 100 100 75 100 62 100 66 27 42 100 56 35 Level 1 34 | . . 24 . 37 . 33 72 57 . 43 27 Level 2 1 | . . . . . . . . . . . 15 Level 3 1 | . . . . . . . . . . . 21 Level 4 . | . . . . . . . . . . . . Level 5 . | . . . . . . . . . . . . High Security . | . . . . . . . . . . . . Max Security . | . . . . . . . . . . . . Squads Dispatched 27 | . 3 . . 1 . 1 7 6 1 . 8 Investigation 3 | . 1 . . . . . 1 . 1 . . Extermination 2 | . . . . . . . 2 . . . . Reinforcement 18 | . 2 . . 1 . 1 4 6 . . 4 Assault 2 | . . . . . . . . . . . 2 Garrison 2 | . . . . . . . . . . . 2 Intercept . | . . . . . . . . . . . . Searches Triggered . | . . . . . . . . . . . . Construction Impeded 9 | . . . . . . . 2 4 . . 3 Haulers Reinforced 1 | . . . . . . . 1 . . . . Active Scanning Responses . | . . . . . . . . . . . . Cargo Convoy Interrupts . | . . . . . . . . . . . . Stealth | -11 -10 -9 -9 -8 -7 -7 -6 -6 -6 -6 -6 --------- Run | Yrd Mat Mat Min Mat Fac DSF Fac Ext Cet Arc Hub Distress Signals 13 | . 2 3 . 3 . . 1 . 2 . 2 Communications Jammed . | . . . . . . . . . . . . Distress Signals . | . . . . . . . . . . . . Times Spotted 203 | . 19 22 5 30 . 6 15 46 12 4 44 Peak Tracking Total 10 | . 4 7 3 6 . 4 4 6 5 1 10 Tactical Retreats 23 | . 1 3 . 7 . 1 2 4 1 . 4 Traps | -11 -10 -9 -9 -8 -7 -7 -6 -6 -6 -6 -6 ------- Run | Yrd Mat Mat Min Mat Fac DSF Fac Ext Cet Arc Hub Traps Triggered 5 | . 1 . 1 . . . . 2 . . 1 Indirectly . | . . . . . . . . . . . . Trap Hack Attempts . | . . . . . . . . . . . . Triggered . | . . . . . . . . . . . . Disarmed . | . . . . . . . . . . . . Reprogrammed . | . . . . . . . . . . . . Reused . | . . . . . . . . . . . . Traps Extracted . | . . . . . . . . . . . . Installed . | . . . . . . . . . . . . Triggered . | . . . . . . . . . . . . Machines | -11 -10 -9 -9 -8 -7 -7 -6 -6 -6 -6 -6 ---------- Run | Yrd Mat Mat Min Mat Fac DSF Fac Ext Cet Arc Hub Machines Disabled 28 | . . 1 . . . 1 6 . 2 2 16 Max in Single Turn 9 | . . 1 . . . 1 3 . 1 1 9 Garrison Access 1 | . . . . . . . . . . . 1 Network Hub 1 | . . . . . . . . . . . 1 Machines Repaired . | . . . . . . . . . . . . Machines Dismantled . | . . . . . . . . . . . . Machines Sabotaged . | . . . . . . . . . . . . Overloaded Fab Kills . | . . . . . . . . . . . . Hacking | -11 -10 -9 -9 -8 -7 -7 -6 -6 -6 -6 -6 --------- Run | Yrd Mat Mat Min Mat Fac DSF Fac Ext Cet Arc Hub Machines Accessed 30 | . 2 5 2 2 1 . 3 8 3 1 3 Terminals 25 | . 2 4 1 2 1 . 1 8 3 . 3 Fabricators . | . . . . . . . . . . . . Repair Stations . | . . . . . . . . . . . . Recycling Units 2 | . . 1 . . . . 1 . . . . Scanalyzers 1 | . . . . . . . 1 . . . . Garrison Access . | . . . . . . . . . . . . Total Hacks 93 | . 7 16 3 5 2 . 9 13 7 25 6 Successful 53 | . 3 7 2 2 1 . 4 6 1 25 2 Failed 40 | . 4 9 1 3 1 . 5 7 6 . 4 Catastrophic 4 | . . 1 . . . . . 1 1 . 1 Database Lockouts . | . . . . . . . . . . . . Manual 37 | . 7 15 2 3 . . . 2 2 . 6 Terminals 59 | . 7 15 2 5 2 . 2 13 7 . 6 Fabricators . | . . . . . . . . . . . . Repair Stations . | . . . . . . . . . . . . Recycling Units 3 | . . 1 . . . . 2 . . . . Scanalyzers 5 | . . . . . . . 5 . . . . Garrison Access . | . . . . . . . . . . . . Terminal Hacks 41 | . 1 2 1 1 1 . 1 6 1 25 2 Record 29 | . . . . . . . . 1 1 25 2 Prototype ID Bank 1 | . . . . . . . . 1 . . . Open Door 6 | . . . 1 . . . 1 4 . . . Open DSF 1 | . . . . . 1 . . . . . . Unreport Threat 3 | . 1 2 . . . . . . . . . Surveillance Status 1 | . . . . 1 . . . . . . . Fabricator Hacks . | . . . . . . . . . . . . Repair Station Hacks . | . . . . . . . . . . . . Recycling Unit Hacks 2 | . . 1 . . . . 1 . . . . Report Inventory 2 | . . 1 . . . . 1 . . . . Scanalyzer 2 | . . . . . . . 2 . . . . Insert Component 1 | . . . . . . . 1 . . . . Analyze 1 | . . . . . . . 1 . . . . Garrison Access Hacks . | . . . . . . . . . . . . Unauthorized Hacks 8 | . 2 4 1 1 . . . . . . . Terminals 8 | . 2 4 1 1 . . . . . . . Botnet 8 | . 2 4 1 1 . . . . . . . Fabricators . | . . . . . . . . . . . . Repair Stations . | . . . . . . . . . . . . Recycling Units . | . . . . . . . . . . . . Scanalyzers . | . . . . . . . . . . . . Garrison Access . | . . . . . . . . . . . . Data Cores Recovered 1 | . . 1 . . . . . . . . . Used . | . . . . . . . . . . . . Hacking Detections 22 | . 2 5 1 2 . . 2 3 4 . 3 Full Trace Events 3 | . . . . 1 . . 1 . 1 . . Feedback Events . | . . . . . . . . . . . . Feedback Blocked . | . . . . . . . . . . . . Robot Schematics Acquired . | . . . . . . . . . . . . Robots Built . | . . . . . . . . . . . . Authchips . | . . . . . . . . . . . . Time . | . . . . . . . . . . . . Total Robot Build Rating . | . . . . . . . . . . . . Part Schematics Acquired . | . . . . . . . . . . . . Parts Built . | . . . . . . . . . . . . Authchips . | . . . . . . . . . . . . Time . | . . . . . . . . . . . . Total Part Build Rating . | . . . . . . . . . . . . Parts Repaired . | . . . . . . . . . . . . Time . | . . . . . . . . . . . . Parts Recycled . | . . . . . . . . . . . . Recycled Matter . | . . . . . . . . . . . . Retrieved Matter . | . . . . . . . . . . . . Retrieved Components . | . . . . . . . . . . . . Parts Scanalyzed 1 | . . . . . . . 1 . . . . Part Schematics Acquired . | . . . . . . . . . . . . Parts Damaged 1 | . . . . . . . 1 . . . . Bothacking | -11 -10 -9 -9 -8 -7 -7 -6 -6 -6 -6 -6 ------------ Run | Yrd Mat Mat Min Mat Fac DSF Fac Ext Cet Arc Hub Used RIF Installer . | . . . . . . . . . . . . Robots Hacked . | . . . . . . . . . . . . Non-combat . | . . . . . . . . . . . . Combat . | . . . . . . . . . . . . Robot Hacks Applied . | . . . . . . . . . . . . Relay Couplers Released 1 | . . . . . . . . . . . 1 Machine Destruction 1 | . . . . . . . . . . . 1 Fabnet Peak Effective % . | . . . . . . . . . . . . Robots Rewired 3 | . . . . . . . . 3 . . . Allies Hacked . | . . . . . . . . . . . . Hacks Repelled . | . . . . . . . . . . . . Allies | -11 -10 -9 -9 -8 -7 -7 -6 -6 -6 -6 -6 -------- Run | Yrd Mat Mat Min Mat Fac DSF Fac Ext Cet Arc Hub Total Allies 8 | . . . . . . . . 8 . . . Largest Group 4 | . . . . . . . . 4 . . . Highest-Rated Group 121 | . . . . . . . . 121 . . . Highest-Rated Ally 39 | . . . . . . . . 39 . . . Total Orders 4 | . . . . . . . 2 1 1 . . EXPLORE 4 | . . . . . . . 2 1 1 . . Ally Attacks 86 | . . . . . . . . 86 . . . Total Damage 1546 | . . . . . . . . 1546 . . . Kills 10 | . . . . . . . . 10 . . . Allies Corrupted . | . . . . . . . . . . . . Allies Melted . | . . . . . . . . . . . . Intel | -11 -10 -9 -9 -8 -7 -7 -6 -6 -6 -6 -6 ------- Run | Yrd Mat Mat Min Mat Fac DSF Fac Ext Cet Arc Hub Robot Analysis Total . | . . . . . . . . . . . . Derelict Logs Recovered 3 | . . . 3 . . . . . . . . Drone Launches 16 | . . . . . . . 6 10 . . . Drone Recoveries . | . . . . . . . . . . . . Exploration | -11 -10 -9 -9 -8 -7 -7 -6 -6 -6 -6 -6 ------------- Run | Yrd Mat Mat Min Mat Fac DSF Fac Ext Cet Arc Hub Turns Passed 8391 | 73 789 780 626 945 24 127 784 2356 673 466 748 Spaces Moved 4450 | 52 425 422 453 460 17 57 491 1249 303 230 291 Core 18 | 18 . . . . . . . . . . . Treads 782 | . . . . . . . . . 261 230 291 Legs 3650 | 34 425 422 453 460 17 57 491 1249 42 . . Wheels . | . . . . . . . . . . . . Hover . | . . . . . . . . . . . . Flight . | . . . . . . . . . . . . Fastest Speed 50 | 50 120 120 120 112 120 120 112 112 120 160 160 Average Speed 127 | 112 120 121 120 117 120 120 112 119 172 160 160 Slowest Speed 400 | 200 120 190 120 120 120 120 120 190 400 160 240 Overloaded Moves . | . . . . . . . . . . . . Propulsion Burnouts . | . . . . . . . . . . . . Robots Hopped . | . . . . . . . . . . . . Cave-ins Triggered . | . . . . . . . . . . . . Exploration Rate (%) 47 | 3 63 31 78 38 1 44 24 91 72 98 32 Regions Visited 11 Branch Regions 5 Pre-discovered Areas 2 | . . . 2 . . . . . . . . Known Exits Taken 3 | . . . . . 1 . . 1 1 . . Unknown Exits Taken 7 | 1 1 1 1 1 . . 1 . . 1 . Scrap Searched 2 | . . . 2 . . . . . . . . Spaces Dug . | . . . . . . . . . . . . Terrain Destroyed 352 | . . . 14 8 . 6 5 117 6 3 193 Melee . | . . . . . . . . . . . . Projectile 44 | . . . . . . . 1 15 6 3 19 AOE 308 | . . . 14 8 . 6 4 102 . . 174 Terrain Rammed . | . . . . . . . . . . . . Walls Destroyed . | . . . . . . . . . . . . Machines Disabled . | . . . . . . . . . . . . Actions | -11 -10 -9 -9 -8 -7 -7 -6 -6 -6 -6 -6 --------- Run | Yrd Mat Mat Min Mat Fac DSF Fac Ext Cet Arc Hub Total 6404 | 63 626 595 505 728 20 98 686 1909 406 320 448 Wait 948 | . 123 62 18 106 2 6 109 386 34 65 37 Move 4439 | 51 424 421 452 459 16 56 490 1248 302 229 291 Hop . | . . . . . . . . . . . . Pick Up 137 | 6 11 17 3 14 . 8 15 33 10 8 12 Fast Attach 65 | 6 3 6 . 8 . 2 8 15 6 2 9 Attach 70 | . 2 6 1 5 2 3 3 30 2 . 16 Detach 14 | . . . . 2 . . 2 1 4 1 4 Swap 92 | . 6 13 8 25 . 3 8 20 6 . 3 Drop 149 | . 12 19 6 29 . 6 22 24 16 9 6 Fire 444 | . 44 48 17 79 . 14 26 114 26 6 70 Melee . | . . . . . . . . . . . . Ram . | . . . . . . . . . . . . Kick 10 | . 1 3 . 1 . . . 5 . . . Crush . | . . . . . . . . . . . . Escape Stasis 9 | . . . . . . . . 9 . . . Rewire 19 | . . . . . . . . 19 . . . Trap . | . . . . . . . . . . . . Miscellaneous 8 | . . . . . . . 3 5 . . . Route ------- -11/Scrapyard -10/Materials (discovered 2 exits: *Mat / [*Min]) -9/Materials -9/Mines -8/Materials -7/Factory (discovered 2 exits: Low / DSF) -7/DSF -6/Factory (discovered 2 exits: [*Low] / *Ext) -6/Extension (discovered 3 exits: *Fac x2 / *Cet) -6/Cetus (discovered 2 exits: *Fac / *Arc) -6/Archives (discovered 3 exits: *Fac / *Hub x2) -6/Hub_04(d) History --------- Turn | Location | Event 26 | -11/Scrapyard | Discovered new exit (range 16) 74 | -11/Scrapyard | Entered Materials 317 | -10/Materials | Build established: Mutant 367 | -10/Materials | Discovered new exit (range 9) 563 | -10/Materials | Lost 3 parts (2p1w) 613 | -10/Materials | Discovered new exit (range 3) 863 | -10/Materials | Entered another Materials area 863 | -9/Materials | Evolved 2 slots: Propulsion x1, Utility x1 1171 | -9/Materials | Build established: Scavenger-Mutant 1428 | -9/Materials | Discovered new exit (range 13) 1568 | -9/Materials | Lost 6 parts (4n2u) 1643 | -9/Materials | Entered Mines 1701 | -9/Mines | Joined a pair of Derelicts in attacking an 0b10 outpost 2069 | -9/Mines | Discovered new exit (range 7) 2074 | -9/Mines | Build established: Mutant 2079 | -9/Mines | Learned location of Zion (-6) 2099 | -9/Mines | Met a Derelict who couldn't figure out how to use a Trap Extractor 2269 | -9/Mines | Entered Materials 2269 | -8/Materials | Evolved 2 slots: Propulsion x1, Utility x1 2575 | -8/Materials | Build established: Scavenger-Mutant 3065 | -8/Materials | Discovered new exit (range 15) 3214 | -8/Materials | Entered Factory 3214 | -7/Factory | Evolved 2 slots: Utility x1, Weapon x1 3215 | -7/Factory | Identified exit to Lower Caves 3234 | -7/Factory | Identified exit to DSF 3238 | -7/Factory | Entered DSF 3264 | -7/DSF | Additional patrols routed to DSF 3264 | -7/DSF | Discovered new exit (range 11) 3304 | -7/DSF | Lost 3 parts (1p1n1u) 3365 | -7/DSF | Entered Factory 3365 | -6/Factory | Evolved 2 slots: Power x1, Utility x1 3534 | -6/Factory | Build established: Scavenger-Tank 3581 | -6/Factory | Discovered new exit (range 85) 3630 | -6/Factory | Spotted B-75 Beast 4134 | -6/Factory | Discovered new exit (range 6) 4149 | -6/Factory | Entered Extension 4352 | -6/Extension | Rescued a captive Derelict 4353 | -6/Extension | Rescued a captive Derelict 4445 | -6/Extension | Rescued a captive Derelict 4454 | -6/Extension | Rescued a captive Derelict 4657 | -6/Extension | Rescued a captive Derelict 4674 | -6/Extension | Spotted B-75 Beast 4723 | -6/Extension | Lost 3 allies 4726 | -6/Extension | Destroyed B-75 Beast 4759 | -6/Extension | Spotted B-75 Beast 5049 | -6/Extension | Disrupted transfer network 5211 | -6/Extension | Destroyed B-75 Beast 5228 | -6/Extension | Lost 10 parts (3p4n1u2w) 5465 | -6/Extension | Build established: Scavenger-Skirmisher 5519 | -6/Extension | Lost 4 parts (2p1n1w) 5610 | -6/Extension | Core integrity fell below 50% 5638 | -6/Extension | Lost 6 parts (1p1u4w) 5891 | -6/Extension | Build established: Scavenger-Gunner 6118 | -6/Extension | Discovered new exit (range 109) 6118 | -6/Extension | Discovered new exit (range 109) 6151 | -6/Extension | Discovered new exit (range 4) 6497 | -6/Extension | Identified exit to Cetus 6499 | -6/Extension | Identified exit to Factory 6505 | -6/Extension | Entered Cetus 6505 | -6/Cetus | Accompanied by 5 allies 6519 | -6/Cetus | Spotted Cetus Guard 6520 | -6/Cetus | Spotted Cetus Guard 6526 | -6/Cetus | Spotted Cetus Guard 6527 | -6/Cetus | Spotted Cetus Guard 6532 | -6/Cetus | Discovered exit to Factory (range 41) 6558 | -6/Cetus | Destroyed Cetus Guard 6571 | -6/Cetus | Destroyed Cetus Guard 6579 | -6/Cetus | Destroyed Cetus Guard 6582 | -6/Cetus | Destroyed Cetus Guard 6586 | -6/Cetus | Lost 3 allies 6604 | -6/Cetus | Lost 4 parts (1p3n) 6954 | -6/Cetus | Build established: Scavenger-Tank 7115 | -6/Cetus | Discovered new exit (range 15) 7145 | -6/Cetus | Spotted Cetus Guard 7146 | -6/Cetus | Spotted Cetus Guard 7176 | -6/Cetus | Identified exit to Archives 7178 | -6/Cetus | Entered Archives 7423 | -6/Archives | Unable to access archive contents 7449 | -6/Archives | Unable to access archive contents 7468 | -6/Archives | Discovered new exit (range 16) 7478 | -6/Archives | Unable to access archive contents 7481 | -6/Archives | Discovered new exit (range 15) 7494 | -6/Archives | Unable to access archive contents 7497 | -6/Archives | Discovered exit to Factory (range 16) 7644 | -6/Archives | Entered Hub_04(d) 7863 | -6/Hub_04(d) | Garrison activated, responded to threat 8119 | -6/Hub_04(d) | Network Hub disabled 8171 | -6/Hub_04(d) | Spotted Lightning 8180 | -6/Hub_04(d) | Spotted Lightning 8184 | -6/Hub_04(d) | Lost 4 parts (1p1u2w) 8187 | -6/Hub_04(d) | Core integrity fell below 20% 8192 | -6/Hub_04(d) | System corruption reached 10% 8229 | -6/Hub_04(d) | Destroyed Lightning 8243 | -6/Hub_04(d) | Destroyed Lightning 8256 | -6/Hub_04(d) | Lost 4 parts (1p2u1w) 8259 | -6/Hub_04(d) | Found Prototype Processor 8328 | -6/Hub_04(d) | Identified Exp. Targeting Computer 8344 | -6/Hub_04(d) | First assault squad dispatched 8392 | -6/Hub_04(d) | Destroyed by L-41 Fighter with Axe Last Messages --------------- 08382_ K-01 Serf collects debris. 08382_ System corrupted: Thermic Laser failed to cycle. 08382_ Slug penetrates L-41 Fighter. 08382_ K-01 Serf destroyed. 08385_ L-41 Fighter suffers critical hit (Burn). 08386_ K-01 Serf collects debris. 08387_ L-41 Fighter heat short circuits Imp. Deuterium Engine. 08387_ Critical hit (Burn: +37). 08388_ L-41 Fighter heat short circuits Carbon-fiber Leg. 08388_ Slug penetrates L-41 Fighter. 08388_ L-41 Fighter suffers critical hit (Destroy). 08388_ Destroyed Broken Carbon-fiber Leg. 08389_ Critical hit (Burn: +37). 08389_ Centrium Heavy Treads destroyed. 08390_ K-01 Serf collects debris. 08392_ System corrupted: Component data lost. Map ----- +----------------------------------------------------+ | ?????????????????????????????# # # % !# #? | | ?????????????????????????????# # ###/### #? | | ?????????????????????????????# #######[% % #? | | ?????????????????????????????# ^ ^ ^ #? | | ?????????????????????????????# ^ ^ %% #? | | ?????????????????????????????#^^" *^ !!!*! #? | | ?????????????????????????????# " *** !!= #? | | ?????????????????????????????# " * !!! +! | | ?????????????????????????????# * # | | ?????????????????????????????# # | | ?????????????????????????????# #"T ### | | ?????????????????????????????# #"""#### | | ?????????????????????????????#% [ % ###### | | ?????????????????????????????# ####[ ### ##" | | ?????????????????????????##### ######+"" # "" | | ????????????????????????## # # " | | ????????????????????????# " " "" """ # #""""" | | ????????????????????###### # " | | ????????????? [ # " | | ???????????????????######## # ## ####""% " | | ????????????????????????# "u; # #%*" | | ??????????#################u### " #=%/"" | | ????????? !%kgg # """"=""""" | | ????????? *^ ==!%! g + "% % | | ????????? !%= !%! l% # "/ | | ???????????####+#########@##### " | | ?????????????????????# [ " " | | ?????????????????????# " " | | ?????????????????????# ;;""""""""" | | ?????????????????????# """ ######## " | | ?????????????????????# """" #??????# " | | ?????????????????????# """" #??????# " | | ?????????????????????# #??????# " | | ?????????????????????# #??????# """""""""" | | ?????????????????????# ? #??????# | | ?????????????????????#####???????????# | | ?????????????????????????????????????############# | | ?????????????????????????????????????????????????? | | ?????????????????????????????????????????????????? | | ?????????????????????????????????????????????????? | | ?????????????????????????????????????????????????? | | ?????????????????????????????????????????????????? | | ?????????????????????????????????????????????????? | | ?????????????????????????????????????????????????? | | ?????????????????????????????????????????????????? | | ?????????????????????????????????????????????????? | | ?????????????????????????????????????????????????? | | ?????????????????????????????????????????????????? | | ?????????????????????????????????????????????????? | | | +----------------------------------------------------+ Best States ------------- Heat Dissipation 113 Energy Generation 45 Energy Capacity 600 Matter Stores 312 Matter Capacity 400 Sight Range 16 Robot Scan Range 16 Terrain Scan Range 16 Terrain Scan Density 10 ECM Strength 2 Base Temperature (-) 100 Armor Coverage 675 Weapon Cycling 15 Phase Shifting 5 Evasion (%) 60 Targeting Accuracy 12 Recoil Reduction 4 Item Schematics ----------------- None Robot Schematics ------------------ None Fabricated ------------ Nothing Alien Tech Used ----------------- None Achievements -------------- Release The Drones! Respectable Loadout Challenges ------------ None Game ------ Seed ShadeFactoryBasin Manual? 0 Play Time 02:34:50 Cumulative 38.2 hours Start 2024.08.11 @ 00:43:49 End 2024.09.18 @ 22:02:02 Sessions 13 Manual Loads 0 Difficulty Rogue Special Mode None Game No. 28 Rogue 28 Adventurer 0 Explorer 0 Win Type - Total 0 Types 0/0/0/0/0/0/0/0/0 Lore% 11 Gallery% 23 Achievement% 20 Wizard Run 0 Options --------- Layout 1 ASCII 0 Keyboard 1 Movement Numpad Keybinds 0 Fullscreen 1 Font 20/SmallcapsGlow Map View 50x35 Zoom Use 0% Tactical HUD 1 Map Filters NONE Filters NONE Steam 1 RUN: 35ed663c-904a-4dd1-bc59-8bca0b723a21